[Event "Early-Titled-Tuesday-Blitz-October-24-2023"]
[Site "Chess.com"]
[Date "2023.10.24"]
[Round "3"]
[White "AryanTari"]
[Black "Fan_Of_Chucky"]
[Result "0-1"]
[WhiteElo "2917"]
[BlackElo "2522"]
[TimeControl "180+1"]
[EndTime "8:28:20 PDT"]
[Termination "Fan_Of_Chucky won by resignation"]

1. b3 {[%clk 0:03:00.9]} 1... Nf6 {[%clk 0:02:34.1]} 2. Bb2 {[%clk 0:03:00]}
2... g6 {[%clk 0:02:35]} 3. Bxf6 {[%clk 0:02:58.5]} 3... exf6 {[%clk 0:02:35.9]}
4. c4 {[%clk 0:02:59]} 4... Bg7 {[%clk 0:02:35.4]} 5. Nc3 {[%clk 0:02:59.5]}
5... O-O {[%clk 0:02:35.2]} 6. e3 {[%clk 0:03:00]} 6... f5 {[%clk 0:02:31.7]} 7.
Nge2 {[%clk 0:02:59.6]} 7... b6 {[%clk 0:02:29.7]} 8. h4 {[%clk 0:02:58]} 8...
h5 {[%clk 0:02:17.1]} 9. Nf4 {[%clk 0:02:49.1]} 9... Bb7 {[%clk 0:02:16.6]} 10.
Be2 {[%clk 0:02:49.4]} 10... Bh6 {[%clk 0:02:11.4]} 11. Bf3 {[%clk 0:02:48.2]}
11... Bc6 {[%clk 0:02:04.6]} 12. g3 {[%clk 0:02:39.3]} 12... Bxf4 {[%clk
0:01:57.8]} 13. gxf4 {[%clk 0:02:39.4]} 13... Qf6 {[%clk 0:01:53.7]} 14. d4
{[%clk 0:02:34.9]} 14... Re8 {[%clk 0:01:37.8]} 15. Kd2 {[%clk 0:02:26.8]} 15...
Bxf3 {[%clk 0:01:30.5]} 16. Qxf3 {[%clk 0:02:26.7]} 16... c6 {[%clk 0:01:31.4]}
17. Rag1 {[%clk 0:02:25.9]} 17... Kf8 {[%clk 0:01:21.6]} 18. Qg2 {[%clk
0:02:12.7]} 18... Na6 {[%clk 0:01:16.8]} 19. Qg5 {[%clk 0:02:12.1]} 19... Qg7
{[%clk 0:01:13]} 20. Ne2 {[%clk 0:02:10.6]} 20... c5 {[%clk 0:01:10.4]} 21. Qg2
{[%clk 0:01:56]} 21... Nb4 {[%clk 0:01:06.9]} 22. a3 {[%clk 0:01:54]} 22... Nc6
{[%clk 0:01:06.7]} 23. Qd5 {[%clk 0:01:54]} 23... cxd4 {[%clk 0:01:00.1]} 24.
exd4 {[%clk 0:01:54]} 24... Re4 {[%clk 0:00:55.9]} 25. f3 {[%clk 0:01:52.6]}
25... Re6 {[%clk 0:00:45.2]} 26. Re1 {[%clk 0:01:47.3]} 26... Rae8 {[%clk
0:00:41.3]} 27. Qxd7 {[%clk 0:01:41.3]} 27... Rd8 {[%clk 0:00:36.3]} 28. Qc7
{[%clk 0:01:41.7]} 28... Rxd4+ {[%clk 0:00:20.2]} 29. Nxd4 {[%clk 0:01:41.4]}
29... Qxd4+ {[%clk 0:00:21.1]} 30. Kc2 {[%clk 0:01:32.3]} 30... Qf2+ {[%clk
0:00:20.8]} 31. Kd1 {[%clk 0:01:20.7]} 31... Qd4+ {[%clk 0:00:14.9]} 32. Kc2
{[%clk 0:01:20.1]} 32... Qf2+ {[%clk 0:00:15.6]} 33. Kd1 {[%clk 0:01:20.6]}
33... Nd4 {[%clk 0:00:14.4]} 34. Rxe6 {[%clk 0:01:12.8]} 34... Qxf3+ {[%clk
0:00:14.2]} 35. Kd2 {[%clk 0:01:10.3]} 35... Nxb3+ {[%clk 0:00:14.1]} 36. Kc2
{[%clk 0:01:03.4]} 36... Nd4+ {[%clk 0:00:13.5]} 37. Kd2 {[%clk 0:01:04.1]}
37... Nb3+ {[%clk 0:00:11.7]} 38. Kc2 {[%clk 0:01:01.9]} 38... Nd4+ {[%clk
0:00:12.4]} 39. Kd2 {[%clk 0:00:55.2]} 39... Qf2+ {[%clk 0:00:11]} 40. Kc3
{[%clk 0:00:44]} 40... Qc2+ {[%clk 0:00:05.2]} 41. Kxd4 {[%clk 0:00:35.1]} 41...
Qd2+ {[%clk 0:00:04.8]} 42. Ke5 {[%clk 0:00:34.3]} 42... Qe3+ {[%clk 0:00:05.2]}
43. Kd5 {[%clk 0:00:34.5]} 43... Qxe6+ {[%clk 0:00:03.2]} 44. Kd4 {[%clk
0:00:35.1]} 44... Qe4+ {[%clk 0:00:01.5]} 45. Kc3 {[%clk 0:00:35.8]} 45... Qxh1
{[%clk 0:00:02.4]} 46. Qxa7 {[%clk 0:00:36.4]} 46... Qc1+ {[%clk 0:00:02.1]} 47.
Kd4 {[%clk 0:00:37.1]} 47... Qxf4+ {[%clk 0:00:01.9]} 48. Kd5 {[%clk 0:00:37.4]}
48... Qe4+ {[%clk 0:00:01.9]} 49. Kd6 {[%clk 0:00:38]} 49... Qd4+ {[%clk
0:00:02]} 50. Kc6 {[%clk 0:00:37.7]} 50... Qxc4+ {[%clk 0:00:02.5]} 51. Kd7
{[%clk 0:00:34.5]} 51... Qd4+ {[%clk 0:00:02.5]} 52. Kc8 {[%clk 0:00:34.5]}
52... f4 {[%clk 0:00:03.1]} 53. Qa8 {[%clk 0:00:33.2]} 53... Kg7 {[%clk
0:00:03.3]} 54. Qb7 {[%clk 0:00:29.6]} 54... Qc3+ {[%clk 0:00:03.5]} 55. Kb8
{[%clk 0:00:29.7]} 55... f3 {[%clk 0:00:03.9]} 56. Qxb6 {[%clk 0:00:23.5]} 56...
Qe5+ {[%clk 0:00:04.4]} 57. Ka8 {[%clk 0:00:20.1]} 57... Qe4+ {[%clk 0:00:04.1]}
58. Kb8 {[%clk 0:00:19.8]} 58... Qf4+ {[%clk 0:00:04.6]} 59. Ka8 {[%clk
0:00:18.2]} 59... f2 {[%clk 0:00:04.5]} 60. Qb2+ {[%clk 0:00:18.1]} 60... Qf6
{[%clk 0:00:04.6]} 61. Qxf2 {[%clk 0:00:11.4]} 61... Qxf2 {[%clk 0:00:04]} 0-1

[Event "Early-Titled-Tuesday-Blitz-October-24-2023"]
[Site "Chess.com"]
[Date "2023.10.24"]
[Round "3"]
[White "mbachez"]
[Black "Buzhizhebuguai"]
[Result "0-1"]
[WhiteElo "2458"]
[BlackElo "2637"]
[TimeControl "180+1"]
[EndTime "8:28:21 PDT"]
[Termination "Buzhizhebuguai won on time"]

1. e4 {[%clk 0:02:55.2]} 1... c6 {[%clk 0:02:58.7]} 2. Nf3 {[%clk 0:02:53]} 2...
d5 {[%clk 0:02:59.6]} 3. exd5 {[%clk 0:02:53.2]} 3... cxd5 {[%clk 0:02:59.9]} 4.
Ne5 {[%clk 0:02:53.4]} 4... Nc6 {[%clk 0:02:58.4]} 5. d4 {[%clk 0:02:53]} 5...
e6 {[%clk 0:02:56.7]} 6. c3 {[%clk 0:02:49.2]} 6... Bd6 {[%clk 0:02:55.7]} 7.
Bb5 {[%clk 0:02:44.5]} 7... Ne7 {[%clk 0:02:55.6]} 8. Qe2 {[%clk 0:02:42.8]}
8... f6 {[%clk 0:02:47.7]} 9. Nf3 {[%clk 0:02:31.6]} 9... O-O {[%clk 0:02:37.6]}
10. O-O {[%clk 0:02:13.3]} 10... Nf5 {[%clk 0:02:36]} 11. Rd1 {[%clk 0:02:09.8]}
11... Kh8 {[%clk 0:02:32.7]} 12. Nbd2 {[%clk 0:02:00.2]} 12... a6 {[%clk
0:02:32.8]} 13. Bd3 {[%clk 0:01:59.3]} 13... b5 {[%clk 0:02:33.2]} 14. Nf1
{[%clk 0:01:55.6]} 14... Ra7 {[%clk 0:02:31.3]} 15. Ng3 {[%clk 0:01:45.3]} 15...
g5 {[%clk 0:02:30.3]} 16. a4 {[%clk 0:01:23.4]} 16... b4 {[%clk 0:02:25.4]} 17.
Nxf5 {[%clk 0:01:15.2]} 17... exf5 {[%clk 0:02:24.8]} 18. c4 {[%clk 0:01:15.4]}
18... f4 {[%clk 0:02:07.7]} 19. cxd5 {[%clk 0:01:03.7]} 19... Ne7 {[%clk
0:02:07.1]} 20. Nd2 {[%clk 0:00:31.1]} 20... Nxd5 {[%clk 0:02:01.5]} 21. Nc4
{[%clk 0:00:29.4]} 21... Re7 {[%clk 0:01:46]} 22. Qh5 {[%clk 0:00:29.1]} 22...
Bb8 {[%clk 0:01:40.1]} 23. Bd2 {[%clk 0:00:29.1]} 23... Be6 {[%clk 0:01:10]} 24.
Re1 {[%clk 0:00:29.1]} 24... Qd7 {[%clk 0:01:10.4]} 25. Qh6 {[%clk 0:00:23.7]}
25... Rg7 {[%clk 0:01:04.6]} 26. f3 {[%clk 0:00:18.6]} 26... Bf5 {[%clk
0:01:02.2]} 27. Be4 {[%clk 0:00:15.9]} 27... Bxe4 {[%clk 0:00:59.3]} 28. Rxe4
{[%clk 0:00:14.9]} 28... Ba7 {[%clk 0:00:52.8]} 29. Kh1 {[%clk 0:00:13.8]} 29...
Nb6 {[%clk 0:00:41.4]} 30. Nxb6 {[%clk 0:00:13.2]} 30... Bxb6 {[%clk 0:00:41.7]}
31. Bxb4 {[%clk 0:00:13.5]} 31... Rff7 {[%clk 0:00:37]} 32. Rae1 {[%clk
0:00:13.5]} 32... Bd8 {[%clk 0:00:08.5]} 33. Re8+ {[%clk 0:00:12.1]} 33... Rg8
{[%clk 0:00:07.5]} 34. Rxg8+ {[%clk 0:00:12.2]} 34... Kxg8 {[%clk 0:00:08.4]}
35. d5 {[%clk 0:00:12.5]} 35... Be7 {[%clk 0:00:07.5]} 36. d6 {[%clk 0:00:11.8]}
36... Bf8 {[%clk 0:00:07.3]} 37. Qh5 {[%clk 0:00:10.9]} 37... Bxd6 {[%clk
0:00:07.3]} 38. Rd1 {[%clk 0:00:10.5]} 38... Qxa4 {[%clk 0:00:06.7]} 39. Rc1
{[%clk 0:00:06.6]} 39... Qxb4 {[%clk 0:00:02.2]} 40. h4 {[%clk 0:00:05.5]} 40...
Bf8 {[%clk 0:00:02.5]} 41. hxg5 {[%clk 0:00:05.2]} 41... Qb5 {[%clk 0:00:02.7]}
42. Rc8 {[%clk 0:00:03.1]} 42... Qxg5 {[%clk 0:00:03]} 43. Qh3 {[%clk
0:00:03.3]} 43... Qe5 {[%clk 0:00:02.7]} 44. Qg4+ {[%clk 0:00:03.2]} 44... Qg5
{[%clk 0:00:02.7]} 45. Qh3 {[%clk 0:00:03.6]} 45... Re7 {[%clk 0:00:03.3]} 46.
Rc1 {[%clk 0:00:02]} 46... Re3 {[%clk 0:00:03.5]} 0-1

[Event "Early-Titled-Tuesday-Blitz-October-24-2023"]
[Site "Chess.com"]
[Date "2023.10.24"]
[Round "3"]
[White "jk13"]
[Black "ContrVersia"]
[Result "0-1"]
[WhiteElo "2687"]
[BlackElo "2919"]
[TimeControl "180+1"]
[EndTime "8:28:22 PDT"]
[Termination "ContrVersia won by resignation"]

1. e4 {[%clk 0:03:00.9]} 1... c5 {[%clk 0:03:00]} 2. c3 {[%clk 0:03:00.7]} 2...
a6 {[%clk 0:02:59.9]} 3. Nf3 {[%clk 0:03:00.2]} 3... d5 {[%clk 0:02:59.7]} 4.
exd5 {[%clk 0:03:00.5]} 4... Qxd5 {[%clk 0:03:00.6]} 5. d4 {[%clk 0:03:00.8]}
5... Bg4 {[%clk 0:03:01.3]} 6. Nbd2 {[%clk 0:02:59.9]} 6... cxd4 {[%clk
0:02:59.5]} 7. Bc4 {[%clk 0:02:58.5]} 7... Bxf3 {[%clk 0:02:37.2]} 8. Bxd5
{[%clk 0:01:56.8]} 8... Bxd1 {[%clk 0:02:36.9]} 9. Kxd1 {[%clk 0:01:57.7]} 9...
dxc3 {[%clk 0:02:37]} 10. bxc3 {[%clk 0:01:56.2]} 10... Nc6 {[%clk 0:02:25.6]}
11. Rb1 {[%clk 0:01:56.1]} 11... e6 {[%clk 0:02:25.7]} 12. Bf3 {[%clk
0:01:52.8]} 12... O-O-O {[%clk 0:02:15.7]} 13. Bxc6 {[%clk 0:01:46.9]} 13...
bxc6 {[%clk 0:02:16.6]} 14. Rb6 {[%clk 0:01:46.8]} 14... Nf6 {[%clk 0:02:17.4]}
15. Ke2 {[%clk 0:01:41.1]} 15... Nd5 {[%clk 0:02:07.2]} 16. Rxc6+ {[%clk
0:01:41.2]} 16... Kb7 {[%clk 0:02:07.7]} 17. Rc4 {[%clk 0:01:41.9]} 17... Be7
{[%clk 0:02:04.1]} 18. Bb2 {[%clk 0:01:30.5]} 18... f5 {[%clk 0:01:53.1]} 19.
Rb1 {[%clk 0:01:30.5]} 19... Bf6 {[%clk 0:01:46.3]} 20. Ba3+ {[%clk 0:01:18.6]}
20... Ka7 {[%clk 0:01:46.6]} 21. Rb3 {[%clk 0:01:14.2]} 21... Rc8 {[%clk
0:01:43.1]} 22. Rxc8 {[%clk 0:01:11.2]} 22... Rxc8 {[%clk 0:01:42.7]} 23. c4
{[%clk 0:01:12.1]} 23... Nf4+ {[%clk 0:01:42]} 24. Kf3 {[%clk 0:01:09.9]} 24...
g5 {[%clk 0:01:42.2]} 25. g3 {[%clk 0:01:07.2]} 25... Ng6 {[%clk 0:01:42.3]} 26.
Ke2 {[%clk 0:00:55.7]} 26... g4 {[%clk 0:01:41.2]} 27. Bd6 {[%clk 0:00:50.6]}
27... Ne5 {[%clk 0:01:29.6]} 28. Bxe5 {[%clk 0:00:38.3]} 28... Bxe5 {[%clk
0:01:30.5]} 29. Re3 {[%clk 0:00:38.7]} 29... Bd4 {[%clk 0:00:57]} 30. Rxe6
{[%clk 0:00:39.6]} 30... Rc7 {[%clk 0:00:57.5]} 31. Nb3 {[%clk 0:00:38.1]} 31...
Bb6 {[%clk 0:00:47.9]} 32. Nd2 {[%clk 0:00:26.6]} 32... Rf7 {[%clk 0:00:47.5]}
33. Nb3 {[%clk 0:00:25.4]} 33... Rc7 {[%clk 0:00:40.8]} 34. Nd2 {[%clk
0:00:25.3]} 34... a5 {[%clk 0:00:33.5]} 35. f3 {[%clk 0:00:23.3]} 35... Bg1
{[%clk 0:00:29.8]} 36. fxg4 {[%clk 0:00:21.4]} 36... fxg4 {[%clk 0:00:30.7]} 37.
Re4 {[%clk 0:00:20.5]} 37... Bxh2 {[%clk 0:00:22.2]} 38. Rxg4 {[%clk 0:00:20.4]}
38... Bg1 {[%clk 0:00:22.4]} 39. Nf3 {[%clk 0:00:18.6]} 39... Bc5 {[%clk
0:00:22.6]} 40. Kd3 {[%clk 0:00:18.8]} 40... a4 {[%clk 0:00:22.6]} 41. Kc3
{[%clk 0:00:15.8]} 41... Rf7 {[%clk 0:00:22.6]} 42. Rf4 {[%clk 0:00:14.6]} 42...
Rxf4 {[%clk 0:00:20.5]} 43. gxf4 {[%clk 0:00:15]} 43... h5 {[%clk 0:00:20.5]}
44. Kd3 {[%clk 0:00:12.2]} 44... Kb6 {[%clk 0:00:20.8]} 45. f5 {[%clk
0:00:08.9]} 45... Kc7 {[%clk 0:00:18.9]} 46. Ke4 {[%clk 0:00:08.7]} 46... Kd6
{[%clk 0:00:19.3]} 47. Ng5 {[%clk 0:00:05.6]} 47... Ke7 {[%clk 0:00:13.3]} 48.
Kd5 {[%clk 0:00:05.5]} 48... Bg1 {[%clk 0:00:07.1]} 49. Nf3 {[%clk 0:00:05.9]}
49... Bf2 {[%clk 0:00:06.6]} 50. Kc6 {[%clk 0:00:06.1]} 50... Kf6 {[%clk
0:00:06.4]} 51. c5 {[%clk 0:00:06.8]} 51... Kxf5 {[%clk 0:00:06.9]} 52. Kb5
{[%clk 0:00:07.2]} 52... Kf4 {[%clk 0:00:06.6]} 53. Nh2 {[%clk 0:00:06.4]} 53...
Bg3 {[%clk 0:00:06.1]} 54. c6 {[%clk 0:00:06]} 54... Ke4 {[%clk 0:00:06.5]} 55.
Nf1 {[%clk 0:00:06.7]} 55... Bc7 {[%clk 0:00:06.1]} 56. Ka6 {[%clk 0:00:06.3]}
56... h4 {[%clk 0:00:06.5]} 57. Kb7 {[%clk 0:00:07.2]} 57... Be5 {[%clk
0:00:06.9]} 58. c7 {[%clk 0:00:07.5]} 58... Bxc7 {[%clk 0:00:07.5]} 59. Kxc7
{[%clk 0:00:08.4]} 59... Kd4 {[%clk 0:00:08]} 60. Kb6 {[%clk 0:00:08.5]} 60...
a3 {[%clk 0:00:07.1]} 61. Kb5 {[%clk 0:00:08.8]} 61... Kc3 {[%clk 0:00:07.5]}
62. Ka4 {[%clk 0:00:08.2]} 62... Kb2 {[%clk 0:00:07.9]} 63. Kb4 {[%clk
0:00:08.9]} 63... Kxa2 {[%clk 0:00:08]} 64. Kc3 {[%clk 0:00:09.8]} 64... Kb1
{[%clk 0:00:08.2]} 65. Nd2+ {[%clk 0:00:10.1]} 65... Kc1 {[%clk 0:00:08.8]} 66.
Kb3 {[%clk 0:00:09.8]} 66... Kxd2 {[%clk 0:00:08.9]} 67. Kxa3 {[%clk 0:00:10.4]}
67... h3 {[%clk 0:00:09.7]} 0-1

[Event "Early-Titled-Tuesday-Blitz-October-24-2023"]
[Site "Chess.com"]
[Date "2023.10.24"]
[Round "3"]
[White "BeautiFullMindChess"]
[Black "AlexOstrovskiy"]
[Result "0-1"]
[WhiteElo "2257"]
[BlackElo "2611"]
[TimeControl "180+1"]
[EndTime "8:28:24 PDT"]
[Termination "AlexOstrovskiy won by resignation"]

1. e4 {[%clk 0:02:52]} 1... d5 {[%clk 0:02:59]} 2. exd5 {[%clk 0:02:51.6]} 2...
Nf6 {[%clk 0:02:59.7]} 3. d4 {[%clk 0:02:51.1]} 3... Bg4 {[%clk 0:03:00.3]} 4.
Be2 {[%clk 0:02:50.9]} 4... Bxe2 {[%clk 0:03:00.5]} 5. Qxe2 {[%clk 0:02:51.8]}
5... Qxd5 {[%clk 0:03:01]} 6. Nf3 {[%clk 0:02:52]} 6... e6 {[%clk 0:02:59.1]} 7.
O-O {[%clk 0:02:51.6]} 7... Nc6 {[%clk 0:02:58.3]} 8. Bf4 {[%clk 0:02:21.3]}
8... O-O-O {[%clk 0:02:56.9]} 9. c3 {[%clk 0:01:47.6]} 9... Qf5 {[%clk
0:02:52.4]} 10. Bg3 {[%clk 0:01:47.2]} 10... h5 {[%clk 0:02:51]} 11. h4 {[%clk
0:01:14]} 11... Ne4 {[%clk 0:02:49.2]} 12. Nbd2 {[%clk 0:01:11.3]} 12... Nxg3
{[%clk 0:02:48.6]} 13. fxg3 {[%clk 0:01:12.2]} 13... Qg4 {[%clk 0:02:40.5]} 14.
Ne4 {[%clk 0:01:04.1]} 14... Be7 {[%clk 0:02:29.1]} 15. Kh2 {[%clk 0:00:52.5]}
15... Bd6 {[%clk 0:02:07.6]} 16. Rae1 {[%clk 0:00:37.9]} 16... Qg6 {[%clk
0:01:43.5]} 17. Nxd6+ {[%clk 0:00:30.7]} 17... Rxd6 {[%clk 0:01:35.6]} 18. Ng5
{[%clk 0:00:31.6]} 18... Rd7 {[%clk 0:01:33]} 19. b4 {[%clk 0:00:24]} 19... Nd8
{[%clk 0:01:21]} 20. Nf3 {[%clk 0:00:19.8]} 20... f6 {[%clk 0:01:20.1]} 21. b5
{[%clk 0:00:18.7]} 21... Re8 {[%clk 0:01:16.7]} 22. a4 {[%clk 0:00:19.6]} 22...
Nf7 {[%clk 0:01:08.1]} 23. a5 {[%clk 0:00:19.4]} 23... e5 {[%clk 0:00:58.7]} 24.
b6 {[%clk 0:00:18.2]} 24... cxb6 {[%clk 0:00:24.7]} 25. axb6 {[%clk 0:00:19.1]}
25... a6 {[%clk 0:00:25.4]} 26. dxe5 {[%clk 0:00:14.5]} 26... fxe5 {[%clk
0:00:26.3]} 27. Qc4+ {[%clk 0:00:12.3]} 27... Kb8 {[%clk 0:00:19.6]} 28. Nd4
{[%clk 0:00:13.2]} 28... Rc8 {[%clk 0:00:14.5]} 29. Qa4 {[%clk 0:00:13.4]} 29...
Qd6 {[%clk 0:00:07.7]} 30. Nf5 {[%clk 0:00:12.6]} 30... Qc6 {[%clk 0:00:07.4]}
31. Qa2 {[%clk 0:00:11.9]} 31... Qxb6 {[%clk 0:00:06.9]} 32. Ne3 {[%clk
0:00:09.5]} 32... Qc7 {[%clk 0:00:05]} 33. c4 {[%clk 0:00:09.1]} 33... Nd6
{[%clk 0:00:04.7]} 34. Nd5 {[%clk 0:00:09.3]} 34... Qc5 {[%clk 0:00:04.8]} 35.
Rc1 {[%clk 0:00:06.6]} 35... Nxc4 {[%clk 0:00:04.9]} 36. Nc3 {[%clk 0:00:04.8]}
36... Rdc7 {[%clk 0:00:04.8]} 37. Ne4 {[%clk 0:00:04.8]} 37... Qd4 {[%clk
0:00:05.3]} 38. Rfe1 {[%clk 0:00:04.2]} 38... Nb6 {[%clk 0:00:04.7]} 39. Rcd1
{[%clk 0:00:04]} 39... Qc4 {[%clk 0:00:04.3]} 40. Qa1 {[%clk 0:00:04.1]} 40...
Qc6 {[%clk 0:00:03.4]} 41. Qxe5 {[%clk 0:00:03.8]} 41... Nc4 {[%clk 0:00:03.7]}
42. Qf4 {[%clk 0:00:03.3]} 42... Ka8 {[%clk 0:00:03.8]} 43. Ng5 {[%clk
0:00:02.7]} 43... Qb5 {[%clk 0:00:04.2]} 44. Qf3 {[%clk 0:00:03]} 44... Nb2
{[%clk 0:00:04.7]} 45. Qf1 {[%clk 0:00:03.3]} 45... Nxd1 {[%clk 0:00:04.5]} 46.
Rxd1 {[%clk 0:00:04.2]} 46... Qxf1 {[%clk 0:00:04.3]} 47. Rxf1 {[%clk
0:00:05.1]} 47... b5 {[%clk 0:00:04.7]} 48. Rf5 {[%clk 0:00:04.7]} 48... Kb7
{[%clk 0:00:05.6]} 49. Ne6 {[%clk 0:00:04.8]} 49... Rc6 {[%clk 0:00:06.1]} 50.
Nd4 {[%clk 0:00:04.9]} 50... Kb6 {[%clk 0:00:07]} 51. Nxc6 {[%clk 0:00:04.8]}
51... Rxc6 {[%clk 0:00:07.9]} 52. Rf4 {[%clk 0:00:05.2]} 52... Rc7 {[%clk
0:00:08.8]} 53. Rf5 {[%clk 0:00:05.8]} 53... Rc6 {[%clk 0:00:09.3]} 54. Rg5
{[%clk 0:00:06.4]} 54... g6 {[%clk 0:00:10.2]} 55. Re5 {[%clk 0:00:06.3]} 55...
b4 {[%clk 0:00:10.5]} 56. Re7 {[%clk 0:00:07.2]} 56... a5 {[%clk 0:00:10.7]} 57.
Re4 {[%clk 0:00:07.4]} 57... Kb5 {[%clk 0:00:11.1]} 58. Re5+ {[%clk 0:00:07.7]}
58... Ka4 {[%clk 0:00:09.8]} 59. Re4 {[%clk 0:00:08.6]} 59... Ka3 {[%clk
0:00:08.7]} 60. g4 {[%clk 0:00:09.5]} 60... hxg4 {[%clk 0:00:08.8]} 61. Rxg4
{[%clk 0:00:10.2]} 61... b3 {[%clk 0:00:09.4]} 62. Rg5 {[%clk 0:00:10]} 62... a4
{[%clk 0:00:09.7]} 63. Rg3 {[%clk 0:00:09.9]} 63... Ka2 {[%clk 0:00:09.8]} 64.
Rg4 {[%clk 0:00:10.1]} 64... a3 {[%clk 0:00:10]} 65. Rg5 {[%clk 0:00:10.2]}
65... b2 {[%clk 0:00:10.3]} 66. Rb5 {[%clk 0:00:09.7]} 66... b1=Q {[%clk
0:00:10.6]} 0-1

[Event "Early-Titled-Tuesday-Blitz-October-24-2023"]
[Site "Chess.com"]
[Date "2023.10.24"]
[Round "3"]
[White "ozates"]
[Black "LiemLe"]
[Result "1/2-1/2"]
[WhiteElo "2731"]
[BlackElo "2977"]
[TimeControl "180+1"]
[EndTime "8:28:35 PDT"]
[Termination "Game drawn by repetition"]

1. e4 {[%clk 0:03:00.9]} 1... c6 {[%clk 0:03:00.2]} 2. Nf3 {[%clk 0:03:00.7]}
2... d5 {[%clk 0:03:01.1]} 3. d3 {[%clk 0:03:01.3]} 3... dxe4 {[%clk 0:02:59.3]}
4. dxe4 {[%clk 0:03:01.5]} 4... Qxd1+ {[%clk 0:02:59.8]} 5. Kxd1 {[%clk
0:03:02.4]} 5... Nf6 {[%clk 0:02:59.9]} 6. Nfd2 {[%clk 0:03:02.5]} 6... h5
{[%clk 0:02:50.3]} 7. a4 {[%clk 0:03:00.9]} 7... g5 {[%clk 0:02:49.2]} 8. a5
{[%clk 0:03:00.2]} 8... g4 {[%clk 0:02:42.9]} 9. Nc3 {[%clk 0:03:00.2]} 9... Bh6
{[%clk 0:02:42.5]} 10. Bc4 {[%clk 0:02:46.5]} 10... Nbd7 {[%clk 0:02:31.2]} 11.
h3 {[%clk 0:02:36.4]} 11... Ne5 {[%clk 0:02:23.5]} 12. Bf1 {[%clk 0:02:18.6]}
12... gxh3 {[%clk 0:02:19.2]} 13. g3 {[%clk 0:02:18.8]} 13... h4 {[%clk
0:02:05.4]} 14. Bxh3 {[%clk 0:02:01.5]} 14... hxg3 {[%clk 0:01:53]} 15. Bxc8
{[%clk 0:02:01.6]} 15... Rxc8 {[%clk 0:01:30]} 16. fxg3 {[%clk 0:02:00.2]} 16...
Nfg4 {[%clk 0:01:23.7]} 17. Ke2 {[%clk 0:01:57.3]} 17... Rg8 {[%clk 0:01:24.3]}
18. Nf3 {[%clk 0:01:49.2]} 18... Bxc1 {[%clk 0:01:23.3]} 19. Raxc1 {[%clk
0:01:46.9]} 19... Nxf3 {[%clk 0:01:22]} 20. Kxf3 {[%clk 0:01:47.6]} 20... Ne5+
{[%clk 0:01:22.7]} 21. Kf2 {[%clk 0:01:37.3]} 21... f6 {[%clk 0:01:08]} 22. b4
{[%clk 0:01:31.3]} 22... Kf7 {[%clk 0:01:00.7]} 23. Rh7+ {[%clk 0:01:28.5]}
23... Rg7 {[%clk 0:01:01]} 24. Rxg7+ {[%clk 0:01:27.9]} 24... Kxg7 {[%clk
0:01:01.9]} 25. Rd1 {[%clk 0:01:21.5]} 25... Rh8 {[%clk 0:01:00.1]} 26. Kg2
{[%clk 0:01:21.3]} 26... Kf7 {[%clk 0:00:58.4]} 27. Ne2 {[%clk 0:01:12.9]} 27...
b6 {[%clk 0:00:40.7]} 28. a6 {[%clk 0:01:02.6]} 28... e6 {[%clk 0:00:34.5]} 29.
Nf4 {[%clk 0:00:58.6]} 29... Ke7 {[%clk 0:00:31.2]} 30. c4 {[%clk 0:00:35.1]}
30... Rh6 {[%clk 0:00:19.7]} 31. c5 {[%clk 0:00:32.5]} 31... bxc5 {[%clk
0:00:17.3]} 32. bxc5 {[%clk 0:00:33.1]} 32... Nd7 {[%clk 0:00:16]} 33. Rd6
{[%clk 0:00:29.8]} 33... e5 {[%clk 0:00:16.5]} 34. Re6+ {[%clk 0:00:21.9]} 34...
Kf7 {[%clk 0:00:16.9]} 35. Rxc6 {[%clk 0:00:22.1]} 35... exf4 {[%clk 0:00:17.1]}
36. Rc7 {[%clk 0:00:22.6]} 36... f3+ {[%clk 0:00:17.1]} 37. Kxf3 {[%clk
0:00:20.7]} 37... Ke6 {[%clk 0:00:18]} 38. c6 {[%clk 0:00:16.7]} 38... Ne5+
{[%clk 0:00:18]} 39. Kg2 {[%clk 0:00:17.4]} 39... Rh8 {[%clk 0:00:17.4]} 40.
Rxa7 {[%clk 0:00:15.6]} 40... Nxc6 {[%clk 0:00:17.8]} 41. Rc7 {[%clk 0:00:15.4]}
41... Kd6 {[%clk 0:00:17.7]} 42. Rf7 {[%clk 0:00:15.6]} 42... Ke6 {[%clk
0:00:18.1]} 43. Rc7 {[%clk 0:00:15.8]} 43... Ne5 {[%clk 0:00:18.6]} 44. a7
{[%clk 0:00:15.7]} 44... Ra8 {[%clk 0:00:19.2]} 45. Kf2 {[%clk 0:00:08.7]} 45...
Kd6 {[%clk 0:00:19]} 46. Rb7 {[%clk 0:00:07.6]} 46... Nc6 {[%clk 0:00:19.1]} 47.
Ke3 {[%clk 0:00:06.5]} 47... Nxa7 {[%clk 0:00:14.8]} 48. Kf4 {[%clk 0:00:04.6]}
48... Nc6 {[%clk 0:00:12.3]} 49. g4 {[%clk 0:00:05]} 49... Ra5 {[%clk
0:00:09.8]} 50. Rh7 {[%clk 0:00:03.8]} 50... Ne5 {[%clk 0:00:09.3]} 51. Rh6
{[%clk 0:00:03.4]} 51... Ke6 {[%clk 0:00:09]} 52. g5 {[%clk 0:00:03.2]} 52...
Nd3+ {[%clk 0:00:06.5]} 53. Ke3 {[%clk 0:00:03.5]} 53... Rxg5 {[%clk 0:00:04]}
54. Kxd3 {[%clk 0:00:03.5]} 54... Ke5 {[%clk 0:00:04.9]} 55. Rh3 {[%clk
0:00:03.6]} 55... Rg4 {[%clk 0:00:05.2]} 56. Rh5+ {[%clk 0:00:02.2]} 56... Ke6
{[%clk 0:00:05.8]} 57. Rf5 {[%clk 0:00:02.7]} 57... Rg3+ {[%clk 0:00:05.6]} 58.
Kd4 {[%clk 0:00:03.2]} 58... Ra3 {[%clk 0:00:06.1]} 59. Kc4 {[%clk 0:00:03.1]}
59... Ra1 {[%clk 0:00:05.7]} 60. Kd4 {[%clk 0:00:03.6]} 60... Rd1+ {[%clk
0:00:06.3]} 61. Ke3 {[%clk 0:00:04.2]} 61... Re1+ {[%clk 0:00:06.8]} 62. Kd4
{[%clk 0:00:04.9]} 62... Rd1+ {[%clk 0:00:06.4]} 63. Ke3 {[%clk 0:00:05.6]}
63... Ra1 {[%clk 0:00:07.3]} 64. Kd4 {[%clk 0:00:06.2]} 64... Ra3 {[%clk
0:00:07.7]} 65. Kc4 {[%clk 0:00:06.2]} 65... Ra4+ {[%clk 0:00:07.8]} 66. Kd3
{[%clk 0:00:06.4]} 66... Ra6 {[%clk 0:00:07.9]} 67. Kd4 {[%clk 0:00:06.9]} 67...
Rd6+ {[%clk 0:00:08.4]} 68. Ke3 {[%clk 0:00:07.4]} 68... Rc6 {[%clk 0:00:08.9]}
69. Kd4 {[%clk 0:00:08]} 69... Rc7 {[%clk 0:00:09.4]} 70. Ke3 {[%clk 0:00:08.5]}
70... Ra7 {[%clk 0:00:10.1]} 71. Kd4 {[%clk 0:00:08.5]} 71... Ra3 {[%clk
0:00:10.3]} 1/2-1/2